lending/lending_fUSD_20250527
["ID","MTS","AMOUNT","RATE_DAILY","PERIOD"]
[362666694,1748389861534,-420.0,0.00019842,2]
[362666695,1748389861544,-1381.6,0.00019842,2]
[362666696,1748389861555,-420.0,0.00019842,2]
[362666697,1748389861565,-603.76,0.00019842,2]
[362666698,1748389861575,-420.0,0.00019842,2]
[362666699,1748389861584,-6512.61,0.00019842,2]
[362666700,1748389861595,-420.0,0.00019842,2]
[362666701,1748389861604,-420.0,0.00019842,2]
[362666702,1748389861615,-3433.98,0.00019842,2]
[362666703,1748389861811,-454.56,0.00019842,2]
[362666704,1748389861821,-420.0,0.00019842,2]
[362666705,1748389861831,-420.0,0.00019842,2]
[362666706,1748389861841,-8600.77,0.00019842,2]
[362666707,1748389861851,-662.24,0.00019842,2]
[362666708,1748389861861,-420.0,0.00019842,2]
[362666709,1748389861871,-420.0,0.00019842,2]
[362666710,1748389861880,-420.0,0.00019842,2]
[362666711,1748389861890,-554.4,0.00019842,2]
[362666712,1748389861900,-424.75,0.00019842,2]
[362666713,1748389861910,-679.67,0.00019842,2]
[362666714,1748389861920,-704.03,0.00019842,2]
[362666715,1748389861929,-420.0,0.00019842,2]
[362666716,1748389861939,-1877.71,0.00019842,2]
[362666717,1748389861950,-5340.02,0.00019842,2]
[362666718,1748389861960,-51886.55,0.00019842,2]
[362666719,1748389861970,-420.0,0.00019842,2]
[362666720,1748389861979,-433.3,0.00019842,2]
[362666721,1748389861989,-1008.95,0.00019842,2]
[362666722,1748389861999,-420.0,0.00019842,2]
[362666723,1748389862008,-2121.0,0.00019842,2]
[362666724,1748389862017,-420.0,0.00019842,2]
[362666725,1748389862027,-1496.69,0.00019842,2]
[362666726,1748389862037,-4064.22,0.00019842,2]
[362666727,1748389862047,-424.37,0.00019842,2]
[362666728,1748389862057,-211.66,0.00019842,2]
[362666729,1748389862067,-774.5,0.00019842,2]
[362666730,1748389862076,-533.96,0.00019842,2]
[362666731,1748389862086,-1808.39,0.00019842,2]
[362666732,1748389862096,-420.0,0.00019842,2]
[362666733,1748389862106,-276.60191027,0.00019842,2]
[362666734,1748389862115,-486.17,0.00019842,2]
[362666735,1748389862125,-585.6,0.00019842,2]
[362666736,1748389862135,-476.08,0.00019842,2]
[362666737,1748389862145,-420.0,0.00019842,2]
[362666738,1748389862154,-420.0,0.00019842,2]
[362666739,1748389862164,-420.0,0.00019842,2]
[362666740,1748389862174,-960.51,0.00019842,2]
[362666741,1748389862184,-541.13,0.00019842,2]
[362666742,1748389862193,-2579.26,0.00019842,2]
[362666743,1748389862203,-1619.95,0.00019842,2]
[362666744,1748389862212,-614.65,0.00019842,2]
[362666745,1748389862222,-556.55,0.00019842,2]
[362666746,1748389862232,-212.93,0.00019842,2]
[362666747,1748389862241,-1698.27,0.00019842,2]
[362666748,1748389862251,-506.27,0.00019842,2]
[362666749,1748389862260,-522.7,0.00019842,2]
[362666750,1748389862270,-1320.7,0.00019842,2]
[362666751,1748389862280,-10235.75,0.00019842,2]
[362666752,1748389862289,-515.12,0.00019842,2]
[362666753,1748389862298,-927.78,0.00019842,2]
[362666754,1748389862308,-453.74,0.00019842,2]
[362666755,1748389862317,-1007.47,0.00019842,2]
[362666756,1748389862327,-1234.89,0.00019842,2]
[362666757,1748389862336,-2301.97,0.00019842,2]
[362666758,1748389862345,-1366.43,0.00019842,2]
[362666759,1748389862355,-1309.41,0.00019842,2]
[362666760,1748389862365,-1404.37,0.00019842,2]
[362666761,1748389862375,-667.86,0.00019842,2]
[362666762,1748389862384,-519.61,0.00019842,2]
[362666763,1748389862394,-420.0,0.00019842,2]
[362666764,1748389862404,-420.0,0.00019843,2]
[362666765,1748389862414,-420.0,0.00019843,2]
[362666766,1748389862424,-547.77,0.00019843,2]
[362666767,1748389862435,-420.0,0.00019843,2]
[362666768,1748389862445,-420.0,0.00019843,2]
[362666769,1748389862455,-463.31,0.00019843,2]
[362666770,1748389862465,-678.9,0.00019843,2]
[362666771,1748389862475,-420.0,0.00019843,2]
[362666772,1748389862484,-674.97,0.00019843,2]
[362666773,1748389862494,-446.2,0.00019843,2]
[362666774,1748389862503,-372.86,0.00019843,2]
[362666775,1748389862515,-451.9,0.00019843,2]
[362666776,1748389862525,-427.97,0.00019843,2]
[362666777,1748389862536,-420.0,0.00019843,2]
[362666778,1748389862547,-420.0,0.00019843,2]
[362666779,1748389862558,-492.02,0.00019843,2]
[362666780,1748389862568,-420.0,0.00019843,2]
[362666781,1748389862577,-524.91,0.00019843,2]
[362666782,1748389862588,-903.14,0.00019843,2]
[362666783,1748389862599,-420.0,0.00019843,2]
[362666784,1748389862610,-440.64,0.00019843,2]
[362666785,1748389862619,-489.49,0.00019843,2]
[362666786,1748389862630,-432.76,0.00019843,2]
[362666787,1748389862640,-420.0,0.00019843,2]
[362666788,1748389862651,-1062.32,0.00019843,2]
[362666789,1748389862660,-599.89,0.00019843,2]
[362666790,1748389862670,-420.0,0.00019843,2]
[362666791,1748389862680,-420.0,0.00019843,2]
[362666792,1748389862690,-558.03,0.00019843,2]
[362666793,1748389862700,-563.23,0.00019843,2]
[362666794,1748389862710,-584.75,0.00019843,2]
[362666795,1748389862720,-420.0,0.00019843,2]
[362666796,1748389862730,-420.0,0.00019843,2]
[362666797,1748389862740,-893.29,0.00019843,2]
[362666798,1748389862751,-506.74,0.00019843,2]
[362666799,1748389862761,-703.51,0.00019843,2]
[362666800,1748389862771,-420.0,0.00019843,2]
[362666801,1748389862780,-581.53,0.00019843,2]
[362666802,1748389862790,-610.08,0.00019843,2]
[362666803,1748389862799,-1402.04,0.00019843,2]
[362666804,1748389862809,-513.59,0.00019843,2]
[362666805,1748389862819,-420.0,0.00019843,2]
[362666806,1748389862829,-433.04,0.00019843,2]
[362666807,1748389862839,-420.0,0.00019843,2]
[362666808,1748389862848,-420.0,0.00019843,2]
[362666809,1748389862858,-420.0,0.00019843,2]
[362666810,1748389862868,-420.0,0.00019843,2]
[362666811,1748389862877,-420.0,0.00019843,2]
[362666812,1748389862888,-420.0,0.00019843,2]
[362666813,1748389862897,-474.26,0.00019843,2]
[362666814,1748389862907,-420.0,0.00019843,2]
[362666815,1748389862917,-483.38,0.00019843,2]
[362666816,1748389862926,-420.0,0.00019843,2]
[362666817,1748389862936,-420.0,0.00019843,2]
[362666818,1748389862945,-520.76,0.00019843,2]
[362666819,1748389862954,-707.62,0.00019843,2]
[362666820,1748389862964,-420.0,0.00019843,2]
[362666821,1748389862973,-420.0,0.00019843,2]
[362666822,1748389862983,-420.0,0.00019843,2]
[362666823,1748389862993,-420.0,0.00019843,2]
[362666824,1748389863002,-565.89,0.00019843,2]
[362666825,1748389863011,-561.69,0.00019843,2]
[362666826,1748389863021,-420.0,0.00019843,2]
[362666827,1748389863030,-420.0,0.00019843,2]
[362666828,1748389863039,-420.0,0.00019843,2]
[362666829,1748389863049,-739.79,0.00019843,2]
[362666830,1748389863058,-420.0,0.00019843,2]
[362666831,1748389863067,-416.6351147,0.00019843,2]
[362666832,1748389863077,-423.79,0.00019843,2]
[362666833,1748389863087,-891.35,0.00019843,2]
[362666834,1748389863096,-446.36,0.00019843,2]
[362666835,1748389863106,-420.0,0.00019843,2]
[362666836,1748389863116,-513.11,0.00019843,2]
[362666837,1748389863125,-840.87,0.00019843,2]
[362666838,1748389863134,-420.0,0.00019843,2]
[362666839,1748389863144,-558.21,0.00019843,2]
[362666840,1748389863154,-846.44,0.00019843,2]
[362666841,1748389863164,-912.49,0.00019843,2]
[362666842,1748389863173,-422.44,0.00019843,2]
[362666843,1748389863183,-672.94,0.00019843,2]
[362666844,1748389863192,-1198.4,0.00019843,2]
[362666845,1748389863202,-1057.76,0.00019843,2]
[362666846,1748389863211,-420.0,0.00019843,2]
[362666847,1748389863221,-420.0,0.00019843,2]
[362666848,1748389863231,-863.54,0.00019843,2]
[362666849,1748389863242,-591.76,0.00019843,2]
[362666850,1748389863251,-420.0,0.00019843,2]
[362666851,1748389863261,-420.0,0.00019843,2]
[362666852,1748389863271,-406.81018787,0.00019843,2]
[362666853,1748389863282,-663.24,0.00019843,2]
[362666854,1748389863291,-487.51,0.00019843,2]
[362666855,1748389863301,-420.0,0.00019843,2]
[362666856,1748389863311,-420.0,0.00019843,2]
[362666857,1748389863320,-518.55,0.00019843,2]
[362666858,1748389863329,-598.01,0.00019843,2]
[362666859,1748389863338,-420.0,0.00019843,2]
[362666860,1748389863348,-524.53,0.00019843,2]
[362666861,1748389863357,-600.77,0.00019843,2]
[362666862,1748389863367,-586.75,0.00019843,2]
[362666863,1748389863377,-420.0,0.00019843,2]
[362666864,1748389863386,-420.0,0.00019843,2]
[362666865,1748389863396,-420.0,0.00019843,2]
[362666866,1748389863405,-420.0,0.00019843,2]
[362666867,1748389863416,-420.0,0.00019843,2]
[362666868,1748389863425,-707.34,0.00019843,2]
[362666869,1748389863435,-420.0,0.00019843,2]
[362666870,1748389863445,-619.11,0.00019843,2]
[362666871,1748389863455,-425.93,0.00019843,2]
[362666872,1748389863465,-717.42,0.00019843,2]
[362666873,1748389863474,-1303.62,0.00019843,2]
[362666874,1748389863484,-420.0,0.00019843,2]
[362666875,1748389863494,-420.0,0.00019843,2]
[362666876,1748389863504,-566.39,0.00019843,2]
[362666877,1748389863516,-545.24,0.00019843,2]
[362666878,1748389863525,-425.99,0.00019843,2]
[362666879,1748389863535,-756.47,0.00019843,2]
[362666880,1748389863546,-420.0,0.00019843,2]
[362666881,1748389863557,-573.07,0.00019843,2]
[362666882,1748389863567,-510.13423823,0.00019843,2]
[362666883,1748389863577,-420.0,0.00019843,2]
[362666884,1748389863587,-420.0,0.00019843,2]
[362666885,1748389863597,-420.0,0.00019843,2]
[362666886,1748389863607,-420.0,0.00019843,2]
[362666887,1748389863616,-420.0,0.00019843,2]
[362666888,1748389863626,-1600.01,0.00019843,2]
[362666889,1748389863636,-911.92,0.00019843,2]
[362666890,1748389863645,-523.69,0.00019843,2]
[362666891,1748389863655,-899.24,0.00019843,2]
[362666892,1748389863665,-420.0,0.00019843,2]
[362666893,1748389863675,-420.0,0.00019843,2]
[362666894,1748389863684,-945.18,0.00019843,2]
[362666895,1748389863694,-420.0,0.00019843,2]
[362666896,1748389863704,-641.75,0.00019843,2]
[362666897,1748389863714,-420.0,0.00019843,2]
[362666898,1748389863723,-1558.84,0.00019843,2]
[362666899,1748389863733,-420.0,0.00019843,2]
[362666900,1748389863743,-428.9,0.00019843,2]
[362666901,1748389863753,-420.0,0.00019843,2]
[362666902,1748389863763,-420.0,0.00019843,2]
[362666903,1748389863772,-462.64,0.00019843,2]
[362666904,1748389863783,-279.64,0.00019843,2]
[362666905,1748389863792,-499.56,0.00019843,2]
[362666906,1748389863802,-824.03,0.00019843,2]
[362666907,1748389863812,-820.43,0.00019843,2]
[362666908,1748389863822,-420.0,0.00019843,2]
[362666909,1748389863831,-842.56,0.00019843,2]
[362666910,1748389863841,-420.0,0.00019843,2]
[362666911,1748389863851,-420.0,0.00019843,2]
[362666912,1748389863861,-420.0,0.00019843,2]
[362666913,1748389863871,-487.72,0.00019843,2]
[362666914,1748389863880,-680.77,0.00019843,2]
[362666915,1748389863890,-995.33,0.00019843,2]
[362666916,1748389863900,-420.0,0.00019843,2]
[362666917,1748389863910,-420.0,0.00019843,2]
[362666918,1748389863919,-300.0,0.00019843,2]
[362666919,1748389863929,-420.0,0.00019843,2]
[362666920,1748389863939,-1089.71,0.00019843,2]
[362666921,1748389863949,-849.9,0.00019843,2]
[362666922,1748389863960,-420.0,0.00019843,2]
[362666923,1748389863970,-863.89,0.00019843,2]
[362666924,1748389863979,-524.19,0.00019843,2]
[362666925,1748389863989,-672.65,0.00019843,2]
[362666926,1748389863998,-420.0,0.00019843,2]
[362666927,1748389864009,-453.8,0.00019843,2]
[362666928,1748389864018,-442.47,0.00019843,2]
[362666929,1748389864028,-420.0,0.00019843,2]
[362666930,1748389864039,-494.18,0.00019843,2]
[362666931,1748389864049,-468.43,0.00019843,2]
[362666932,1748389864058,-420.0,0.00019843,2]
[362666933,1748389864068,-420.0,0.00019843,2]
[362666934,1748389864078,-699.55,0.00019843,2]
[362666935,1748389864087,-500.0,0.00019843,2]
[362666936,1748389864097,-420.0,0.00019843,2]
[362666937,1748389864107,-1124.8,0.00019843,2]
[362666938,1748389864117,-420.0,0.00019843,2]
[362666939,1748389864127,-420.0,0.00019843,2]
[362666940,1748389864137,-420.0,0.00019843,2]
[362666941,1748389864147,-501.1,0.00019843,2]
[362666942,1748389864157,-909.94,0.00019843,2]
[362666943,1748389864166,-1208.75,0.00019843,2]
[362666944,1748389864176,-188.08788554,0.00019843,2]
[362666945,1748389864186,-224.7,0.00019843,2]
[362666946,1748389864196,-766.25,0.00019843,2]
[362666947,1748389864205,-644.79,0.00019843,2]
[362666948,1748389864215,-420.0,0.00019843,2]
[362666949,1748389864225,-848.58,0.00019843,2]
[362666950,1748389864235,-420.0,0.00019843,2]
[362666951,1748389864245,-1075.32,0.00019843,2]
[362666952,1748389864255,-532.26,0.00019843,2]
[362666953,1748389864264,-420.0,0.00019843,2]
[362666954,1748389864275,-514.06,0.00019843,2]
[362666955,1748389864285,-420.0,0.00019843,2]
[362666956,1748389864295,-1008.24,0.00019843,2]
[362666957,1748389864304,-488.32954644,0.00019843,2]
[362666958,1748389864314,-420.0,0.00019843,2]
[362666959,1748389864323,-1175.26,0.00019843,2]
[362666960,1748389864333,-1896.39,0.00019843,2]
[362666961,1748389864342,-831.19,0.00019843,2]
[362666962,1748389864352,-420.0,0.00019843,2]
[362666963,1748389864361,-489.74,0.00019843,2]
[362666964,1748389864370,-958.66,0.00019843,2]
[362666965,1748389864380,-439.29802466,0.00019843,2]
[362666966,1748389864389,-962.17,0.00019843,2]
[362666967,1748389864399,-506.2430218,0.00019843,2]
[362666968,1748389864409,-420.0,0.00019843,2]
[362666969,1748389864418,-1243.21,0.00019843,2]
[362666970,1748389864428,-920.69,0.00019843,2]
[362666971,1748389864438,-420.0,0.00019843,2]
[362666972,1748389864447,-872.31,0.00019843,2]
[362666973,1748389864457,-701.15,0.00019843,2]
[362666974,1748389864467,-420.0,0.00019843,2]
[362666975,1748389864478,-635.67,0.00019843,2]
[362666976,1748389864488,-420.0,0.00019843,2]
[362666977,1748389864498,-1604.69,0.00019843,2]
[362666978,1748389864507,-420.0,0.00019843,2]
[362666979,1748389864520,-420.0,0.00019843,2]
[362666980,1748389864530,-522.13,0.00019843,2]
[362666981,1748389864540,-501.92,0.00019844,2]
[362666982,1748389864551,-420.0,0.00019844,2]
[362666983,1748389864562,-445.58,0.00019844,2]
[362666984,1748389864572,-561.45,0.00019844,2]
[362666985,1748389864581,-907.9,0.00019844,2]
[362666986,1748389864591,-1303.62,0.00019844,2]
[362666987,1748389864601,-1021.04,0.00019844,2]
[362666988,1748389864610,-1533.79,0.00019844,2]
[362666989,1748389864619,-420.0,0.00019844,2]
[362666990,1748389864629,-1454.37,0.00019844,2]
[362666991,1748389864638,-420.0,0.00019844,2]
[362666992,1748389864647,-420.0,0.00019844,2]
[362666993,1748389864657,-999.86,0.00019844,2]
[362666994,1748389864667,-461.17,0.00019844,2]
[362666995,1748389864676,-649.19,0.00019844,2]
[362666996,1748389864686,-420.0,0.00019844,2]
[362666997,1748389864696,-420.0,0.00019844,2]
[362666998,1748389864706,-420.0,0.00019845,2]
[362666999,1748389864716,-420.0,0.00019845,2]
[362667000,1748389864726,-420.0,0.00019845,2]
[362667001,1748389864736,-574.18,0.00019845,2]
[362667002,1748389864745,-420.0,0.00019845,2]
[362667003,1748389864755,-420.0,0.00019845,2]
[362667004,1748389864764,-420.0,0.00019845,2]
[362667005,1748389864773,-420.0,0.00019845,2]
[362667006,1748389864784,-564.0,0.00019845,2]
[362667007,1748389864793,-553.74245145,0.00019845,2]
[362667008,1748389864803,-420.0,0.00019845,2]
[362667009,1748389865020,-420.0,0.00019845,2]
[362667010,1748389865029,-737.02,0.00019845,2]
[362667011,1748389865040,-363.34741281,0.00019845,2]
[362667012,1748389865050,-572.51,0.00019845,2]
[362667013,1748389865059,-804.35,0.00019845,2]
[362667014,1748389865069,-420.0,0.00019845,2]
[362667015,1748389865079,-599.35,0.00019845,2]
[362667016,1748389865089,-715.6,0.00019845,2]
[362667017,1748389865099,-991.37,0.00019845,2]
[362667018,1748389865108,-451.86,0.00019845,2]
[362667019,1748389865118,-684.45,0.00019845,2]
[362667020,1748389865127,-1155.26,0.00019845,2]
[362667021,1748389865137,-678.93,0.00019845,2]
[362667022,1748389865146,-420.0,0.00019845,2]
[362667023,1748389865156,-3113.9,0.00019845,2]
[362667024,1748389865165,-561.74,0.00019845,2]
[362667025,1748389865175,-535.68,0.00019845,2]
[362667026,1748389865184,-1227.38,0.00019845,2]
[362667027,1748389865194,-804.47,0.00019845,2]
[362667028,1748389865385,-548.75,0.00019845,2]
[362667029,1748389865395,-10098.14,0.00019845,2]
[362667030,1748389865405,-492.16,0.00019845,2]
[362667031,1748389865415,-2317.27,0.00019845,2]
[362667032,1748389865424,-1506.58,0.00019845,2]
[362667033,1748389865434,-420.0,0.00019845,2]
[362667034,1748389865444,-1555.4,0.00019845,2]
[362667035,1748389865453,-598.28,0.00019845,2]
[362667036,1748389865463,-161.76915226,0.00019845,2]
[362667037,1748389865473,-500.0,0.00019845,2]
[362667038,1748389865483,-150.0,0.00019853,2]
[362667039,1748389865493,-500.0,0.00019872,2]
[362667040,1748389865502,-159.48822434,0.00019873,2]
[362667041,1748389865513,-1303.62,0.00019899,2]
[362667042,1748389865524,-150.0,0.00019899,2]
[362667043,1748389865534,-220.95986151,0.000199,2]
[362667044,1748389865545,-564.71,0.000199,2]
[362667045,1748389865555,-1703.43848084,0.000199,2]
[362667046,1748389865565,-5898.17033719,0.000199,2]
[362667047,1748389865575,-2268.93167223,0.000199,2]
[362667048,1748389865586,-207.4095594,0.000199,2]
[362667049,1748389865596,-212.97483994,0.000199,2]
[362667050,1748389865605,-562.0,0.000199,2]
[362667051,1748389865615,-500.0,0.00019901,2]
[362667052,1748389865624,-152.58027303,0.00019901,2]
[362667053,1748389865633,-150.0,0.00019901,2]
[362667054,1748389865643,-150.0,0.00019901,2]
[362667055,1748389865653,-155.19851147,0.00019901,2]
[362667056,1748389865663,-154.59758542,0.00019901,2]
[362667057,1748389865673,-150.000001,0.00019901,2]
[362667058,1748389865683,-150.0,0.00019901,2]
[362667059,1748389865692,-150.0,0.00019901,2]
[362667060,1748389865701,-150.0,0.00019922,2]
[362667061,1748389865711,-500.0,0.00019928,2]
[362667062,1748389865720,-150.0,0.00019928,2]
[362667063,1748389865731,-270.0,0.00019928,2]
[362667064,1748389865741,-200.0,0.00019928,2]
[362667065,1748389865750,-150.0,0.00019928,2]
[362667066,1748389865760,-150.0,0.00019937,2]
[362667067,1748389865769,-390.75092103,0.00019956,2]
[362667068,1748389865779,-188.77732149,0.00019956,2]
[362667069,1748389865790,-500.0,0.00019973,2]
[362667070,1748389865799,-500.0,0.00019973,2]
[362667071,1748389865808,-500.0,0.00019973,2]
[362667072,1748389865818,-500.0,0.00019973,2]
[362667073,1748389865827,-500.0,0.00019973,2]
[362667074,1748389865837,-500.0,0.00019973,2]
[362667075,1748389865847,-500.0,0.00019973,2]
[362667076,1748389865856,-159.49887573,0.00019973,2]
[362667077,1748389865867,-500.0,0.00019973,2]
[362667078,1748389865876,-500.0,0.00019973,2]
[362667079,1748389865886,-153.12478936,0.00019973,2]
[362667080,1748389865896,-500.0,0.00019973,2]
[362667081,1748389865905,-522.17204485,0.00019973,2]
[362667082,1748389865914,-500.0,0.00019973,2]
[362667083,1748389865924,-163.26941937,0.00019973,2]
[362667084,1748389865934,-500.0,0.00019973,2]
[362667085,1748389865943,-501.56988309,0.00019973,2]
[362667086,1748389865953,-500.0,0.00019973,2]
[362667087,1748389865963,-500.81843102,0.00019973,2]
[362667088,1748389865972,-159.47601886,0.00019973,2]
[362667089,1748389865982,-500.0,0.00019973,2]
[362667090,1748389865991,-160.68093137,0.00019973,2]
[362667091,1748389866001,-500.0,0.00019973,2]
[362667092,1748389866010,-450.627298,0.00019973,2]
[362667093,1748389866019,-500.0,0.00019973,2]
[362667094,1748389866029,-500.40686869,0.00019973,2]
[362667095,1748389866040,-160.95394472,0.00019973,2]
[362667096,1748389866050,-500.0,0.00019973,2]
[362667097,1748389866059,-162.54466868,0.00019973,2]
[362667098,1748389866068,-211.96706192,0.00019973,2]
[362667099,1748389866078,-511.6034039,0.00019973,2]
[362667100,1748389866087,-502.98028434,0.00019973,2]
[362667101,1748389866097,-500.0,0.00019973,2]
[362667102,1748389866106,-510.83219288,0.00019973,2]
[362667103,1748389866116,-500.0,0.00019973,2]
[362667104,1748389866126,-500.0,0.00019973,2]
[362667105,1748389866136,-500.0,0.00019973,2]
[362667106,1748389866146,-150.0,0.00019977,2]
[362667107,1748389866155,-150.0,0.00019986,2]
[362667108,1748389866165,-397.14478733,0.0001999,2]
[362667109,1748389866175,-397.14478733,0.0001999,2]
[362667110,1748389866184,-805.6024449,0.00019992,2]
[362667111,1748389866194,-1190.0,0.00019997,2]
[362667112,1748389866203,-1092.6319277,0.00019997,2]
[362667113,1748389866213,-153.0,0.00019997,2]
[362667114,1748389866222,-153.0,0.00019997,2]
[362667115,1748389866231,-153.0,0.00019997,2]
[362667116,1748389866241,-153.0,0.00019997,2]
[362667117,1748389866250,-153.0,0.00019997,2]
[362667118,1748389866260,-153.0,0.00019997,2]
[362667119,1748389866269,-153.0,0.00019997,2]
[362667120,1748389866279,-153.0,0.00019997,2]
[362667121,1748389866289,-153.0,0.00019997,2]
[362667122,1748389866299,-153.0,0.00019997,2]
[362667123,1748389866308,-153.0,0.00019997,2]
[362667124,1748389866317,-153.0,0.00019997,2]
[362667125,1748389866327,-153.0,0.00019997,2]
[362667126,1748389866336,-153.0,0.00019997,2]
[362667127,1748389866346,-153.0,0.00019997,2]
[362667128,1748389866356,-153.0,0.00019997,2]
[362667129,1748389866366,-153.0,0.00019997,2]
[362667130,1748389866376,-153.0,0.00019997,2]
[362667131,1748389866385,-153.0,0.00019997,2]
[362667132,1748389866395,-153.0,0.00019997,2]
[362667133,1748389866405,-153.0,0.00019997,2]
[362667134,1748389866415,-153.0,0.00019997,2]
[362667135,1748389866424,-153.0,0.00019997,2]
[362667136,1748389866433,-153.0,0.00019997,2]
[362667137,1748389866443,-153.0,0.00019997,2]
[362667138,1748389866452,-153.0,0.00019997,2]
[362667139,1748389866462,-153.0,0.00019997,2]
[362667140,1748389866471,-164.31,0.00019997,2]
[362667141,1748389866481,-1303.62,0.00019998,2]
[362667142,1748389866490,-500.0,0.00019998,2]
[362667143,1748389866500,-500.0,0.00019998,2]
[362667144,1748389866510,-699.51839503,0.00019999,2]
[362667145,1748389866524,-1303.62,0.00019999,2]
[362667146,1748389866534,-1303.62,0.00019999,2]
[362667147,1748389866543,-1303.62,0.00019999,2]
[362667148,1748389866554,-1303.62,0.00019999,2]
[362667149,1748389866565,-1303.62,0.00019999,2]
[362667150,1748389866574,-1303.62,0.00019999,2]
[362667151,1748389866584,-1303.62,0.00019999,2]
[362667152,1748389866595,-1303.62,0.00019999,2]
[362667153,1748389866604,-1303.62,0.00019999,2]
[362667154,1748389866613,-1303.62,0.00019999,2]
[362667155,1748389866623,-1303.62,0.00019999,2]
[362667156,1748389866632,-1303.62,0.00019999,2]
[362667157,1748389866642,-1303.76736583,0.00019999,2]
[362667158,1748389866652,-227197.8305858,0.00019999,2]
[362667159,1748389866661,-593.0393825,0.00019999,2]
[362667160,1748389866672,-350.5021725,0.00019999,2]
[362667161,1748389866681,-500.0,0.00019999,2]
[362667162,1748389866691,-237.89,0.00019999,2]
[362667163,1748389866700,-11412.3627913,0.00019999,2]
[362667164,1748389866710,-1930.9123348,0.00019999,2]
[362667165,1748389866720,-1460.9731813,0.00019999,2]
[362667166,1748389866730,-360.59480863,0.0002,2]
[362667167,1748389866740,-573596.12801299,0.0002,2]
[362667168,1748389866750,-735129.10030469,0.0002,2]
[362667169,1748389866759,-4316.35591727,0.0002,2]
[362667170,1748389866769,-164943.62167547,0.0002,2]
[362667171,1748389869123,-420.0,0.00019019,2]
[362667172,1748389869133,-688.1,0.0001902,2]
[362667173,1748389869142,-420.0,0.00019021,2]
[362667174,1748389869152,-263.69,0.00019294,2]
[362667175,1748389869162,-688.1,0.00019294,2]
[362667176,1748389869171,-420.0,0.00019295,2]
[362667177,1748389869180,-688.1,0.00019568,2]
[362667178,1748389869190,-29037.27291028,0.0002,2]
[362667179,1748389869203,-20341.0,0.0002,2]
[362667180,1748389869214,-19295.2,0.0002,2]
[362667181,1748389869226,-3602.0,0.0002,2]
[362667182,1748389869238,-348.16,0.0002,2]
[362667183,1748389869250,-973.14958002,0.0002,2]
[362667184,1748389869261,-576.65000254,0.0002,2]
[362667185,1748389869281,-688.1,0.00019842,2]
[362667186,1748389869291,-490.500015,0.0002,2]
[362667187,1748389869314,-4798.62590445,0.0002,2]
[362667188,1748389869334,-8292.93785819,0.0002,2]
[362667189,1748389884281,1286.88,0.0001697,2]
[362667190,1748390160686,89413.16371981,0.00018,7]
[362667191,1748390160713,69731.83628019,0.00018,7]
[362667193,1748390262353,380.3,0.00013699,2]
[362667194,1748390383872,150.0,0.00018332,7]